Cogmind - Beta 9.3 @@@ ROGUE MODE // 2020.01.06 @ 23:39:31 Player: Klin Result: Destroyed self via exploding Fusion Modulator Performance ------------- Evolutions (0) 0 Regions Visited (1) 200 Robots Destroyed (16) 80 Value Destroyed (574) 574 Prototype IDs (2) 40 Alien Tech Used (0) 0 Bonus (0) 0 TOTAL SCORE: 894 Bonus ------- None Cogmind --------- Core Integrity 0/250 Matter 300/300 Energy 250/250 System Corruption 0% Temperature Cool (132) Movement Walking (120) Location -10/Materials Parts ------- > --- POWER (1) -------- Ion Engine > --- PROPULSION (2) --- Aluminum Leg Aluminum Leg > --- UTILITY (2) ------ Medium Storage Unit Visual Processing Unit > --- WEAPON (2) ------- EM Shotgun Small Laser > --- INVENTORY (8) ---- Ion Engine Sensor Array Signal Interpreter Terrain Scanner Terrain Scan Processor Small Laser Particle Gun Particle Cannon Peak State ------------ > --- POWER ------------ Ion Engine > --- PROPULSION ------- Aluminum Leg Aluminum Leg > --- UTILITY ---------- Medium Storage Unit Visual Processing Unit > --- WEAPON ----------- EM Shotgun Particle Cannon > --- INVENTORY -------- Aluminum Leg Aluminum Leg Aluminum Leg Sensor Array Signal Interpreter Small Laser Small Laser [Rating: 10] Favorites ----------- Power Light Ion Engine Engine Light Ion Engine Propulsion Aluminum Leg Leg Aluminum Leg Utility Medium Storage Unit Storage Medium Storage Unit Processor Visual Processing Unit Weapon Small Laser Energy Gun Small Laser Energy Cannon Beam Cannon Ballistic Gun Assault Rifle Launcher Grenade Launcher Build | -11 -10 ------- Run | Scr Mat Slots Evolved . | . . Power . | . . Propulsion . | . . Utility . | . . Weapon . | . . Parts Attached 24 | 6 18 Power 4 | 1 3 Engine 4 | 1 3 Core . | . . Reactor . | . . Propulsion 5 | 2 3 Treads . | . . Leg 5 | 2 3 Wheel . | . . Hover . | . . Flight . | . . Utility 3 | 1 2 Device . | . . Storage 2 | 1 1 Processor 1 | . 1 Hackware . | . . Protection . | . . Artifact . | . . Weapon 12 | 2 10 Energy Gun 7 | 1 6 Energy Cannon 2 | . 2 Ballistic Gun 2 | 1 1 Ballistic Cannon . | . . Launcher 1 | . 1 Special Weapon . | . . Impact Weapon . | . . Slashing Weapon . | . . Piercing Weapon . | . . Special Melee Weapon . | . . Unidentified Prototypes . | . . Parts Lost 8 | . 8 Power 2 | . 2 Propulsion . | . . Utility . | . . Weapon 6 | . 6 Highest Loss Streak 3 | . 3 Average Slot Usage (%) 94 | . 94 Engine 10 | . 10 Leg 28 | . 28 Storage 17 | . 17 Processor 10 | . 10 Energy Gun 11 | . 11 Energy Cannon 2 | . 2 Ballistic Gun 7 | . 7 Launcher 4 | . 4 Naked Turns . | . . Heaviest Build 20 | 10 20 Greatest Support 20 | 20 20 Greatest Overweight (x) . | . . Average Overweight (x) . | . . Largest Inventory Capacity 10 | 6 10 Average Capacity 8 | 4 8 Most Carried 8 | 1 8 Average Carried 3 | . 3 Final Capacity 8 | 6 8 Final Carried 8 | 1 8 Class Distribution -------------------- 62% | Mutant 37% | Scavenger-Mutant Dominant Class ---------------- Mutant | -10/Materials Resources | -11 -10 ----------- Run | Scr Mat Matter Collected 570 | 239 331 Remotely . | . . Salvage Created 473 | . 473 Parts 32 | . 32 Haulers Intercepted . | . . Recyclers Shooed . | . . Parts Field Recycled . | . . Retrieved Matter . | . . Parts Self-Destructed . | . . Prevented . | . . Kills | -11 -10 ------- Run | Scr Mat Combat Hostiles Destroyed 14 | . 14 Guns 8 | . 8 Cannons 4 | . 4 AOE 2 | . 2 Classes Destroyed 2 | . 2 Watcher 2 | . 2 Grunt 14 | . 14 Best Kill Streak 3 | . 3 Combat Bots Only 3 | . 3 Max Kills in Single Turn 1 | . 1 Gunslinging . | . . Exploded 1 | . 1 Melee . | . . Uniques/NPCs Destroyed . | . . Combat | -11 -10 -------- Run | Scr Mat Damage Taken 1115 | . 1115 Core 319 | . 319 Absorbed by Shields . | . . Core Remaining (%) 100 | 100 . Volleys Fired 52 | . 52 Largest 2 | . 2 Hottest 125 | . 125 Shots Fired 94 | . 94 Gun 71 | . 71 Cannon 14 | . 14 Launcher 9 | . 9 Special . | . . Kinetic 32 | . 32 Thermal 45 | . 45 Explosive 9 | . 9 Electromagnetic 8 | . 8 Robot Hit Streak 15 | . 15 Robot Miss Streak 7 | . 7 Penetration Max . | . . Secondary Targets 1 | . 1 Max Gunslinging Chain 1 | . 1 Shots Hit Robots 59 | . 59 Core Hits 30 | . 30 Critical Hits 1 | . 1 Critical Kills 1 | . 1 Critical Parts Destroyed . | . . Melee Attacks . | . . Impact . | . . Slashing . | . . Piercing . | . . Sneak Attacks . | . . Combat Hostiles . | . . Follow-up Attacks . | . . Damage Inflicted 1024 | . 1024 Guns 483 | . 483 Cannons 163 | . 163 Explosions 378 | . 378 Melee . | . . Ramming . | . . Kinetic 185 | . 185 Thermal 408 | . 408 Explosive 378 | . 378 Electromagnetic 53 | . 53 Impact . | . . Slashing . | . . Piercing . | . . Highest Corruption . | . . Average Corruption . | . . Corruption Purged . | . . Overload Shots . | . . Overflow Damage 19 | . 19 Projectiles . | . . Explosions 19 | . 19 Melee . | . . Knockbacks . | . . Impact . | . . Kinetic . | . . Secondary . | . . Self-Inflicted Damage 142 | . 142 Shots 3 | . 3 Rammed . | . . Targets Rammed . | . . Kicked . | . . Crushed . | . . Highest Temperature 233 | . 233 Average Temperature 64 | . 64 Received Heat Transfer 537 | . 537 Siege Activations . | . . Robots Corrupted . | . . Combat Hostiles . | . . Parts Fried . | . . Impact Corruptions . | . . Robots Melted . | . . Combat Hostiles . | . . Parts Melted 3 | . 3 Heat Transferred 894 | . 894 Parts Sabotaged . | . . Parts Stolen . | . . Parts Stripped . | . . Power Chain Reactions . | . . Missiles Intercepted . | . . Alert | -11 -10 ------- Run | Scr Mat Peak Influence 257 | . 257 Average Influence 102 | . 109 Maximum Alert Level 1 | . 1 Low Security (%) 85 | 100 85 Level 1 14 | . 14 Level 2 . | . . Level 3 . | . . Level 4 . | . . Level 5 . | . . High Security . | . . Max Security . | . . Squads Dispatched 6 | . 6 Investigation 4 | . 4 Extermination . | . . Reinforcement 2 | . 2 Assault . | . . Garrison . | . . Intercept . | . . Construction Impeded . | . . Haulers Reinforced . | . . Stealth | -11 -10 --------- Run | Scr Mat Distress Signals . | . . Communications Jammed . | . . Distress Signals . | . . Times Spotted 24 | . 24 Peak Tracking Total 3 | . 3 Tactical Retreats 1 | . 1 Traps | -11 -10 ------- Run | Scr Mat Traps Triggered . | . . Indirectly . | . . Trap Hack Attempts . | . . Triggered . | . . Disarmed 6 | . 6 Reprogrammed . | . . Reused . | . . Traps Extracted . | . . Installed . | . . Triggered . | . . Machines | -11 -10 ---------- Run | Scr Mat Machines Disabled 4 | . 4 Max in Single Turn 1 | . 1 Machines Sabotaged . | . . Garrisons Compromised . | . . Overloaded Fab Kills . | . . Fab Network Shutdowns . | . . Hacking | -11 -10 --------- Run | Scr Mat Machines Accessed 5 | . 5 Terminals 4 | . 4 Fabricators . | . . Repair Stations . | . . Recycling Units 1 | . 1 Scanalyzers . | . . Garrison Access . | . . Total Hacks 22 | . 22 Successful 9 | . 9 Failed 13 | . 13 Catastrophic . | . . Database Lockouts . | . . Manual . | . . Terminals 19 | . 19 Fabricators . | . . Repair Stations . | . . Recycling Units 3 | . 3 Scanalyzers . | . . Garrison Access . | . . Terminal Hacks 7 | . 7 Prototype ID Bank 1 | . 1 Branch Access Points 1 | . 1 Emergency Access Points 1 | . 1 Disarm Traps 1 | . 1 Maintenance Status 1 | . 1 Transport Status 1 | . 1 Hauler Manifests 1 | . 1 Fabricator Hacks . | . . Repair Station Hacks . | . . Recycling Unit Hacks 2 | . 2 Report Inventory 1 | . 1 Retrieve Components 1 | . 1 Scanalyzer . | . . Garrison Access Hacks . | . . Unauthorized Hacks . | . . Terminals . | . . Fabricators . | . . Repair Stations . | . . Recycling Units . | . . Scanalyzers . | . . Garrison Access . | . . Data Cores Recovered . | . . Used . | . . Hacking Detections 5 | . 5 Full Trace Events 5 | . 5 Feedback Events . | . . Feedback Blocked . | . . Robot Schematics Acquired . | . . Robots Built . | . . Matter . | . . Time . | . . Total Robot Build Rating . | . . Part Schematics Acquired . | . . Parts Built . | . . Matter . | . . Time . | . . Total Part Build Rating . | . . Parts Repaired . | . . Time . | . . Parts Recycled . | . . Recycled Matter . | . . Retrieved Matter . | . . Retrieved Components 10 | . 10 Parts Scanalyzed . | . . Part Schematics Acquired . | . . Parts Damaged . | . . Bothacking | -11 -10 ------------ Run | Scr Mat Used RIF Installer . | . . Robots Hacked . | . . Non-combat . | . . Combat . | . . Robot Hacks Applied . | . . Relay Couplers Released . | . . Robots Rewired . | . . Allies Hacked . | . . Hacks Repelled . | . . Allies | -11 -10 -------- Run | Scr Mat Total Allies . | . . Largest Group . | . . Highest-Rated Group . | . . Highest-Rated Ally . | . . Total Orders . | . . Ally Attacks . | . . Total Damage . | . . Kills . | . . Allies Corrupted . | . . Allies Melted . | . . Intel | -11 -10 ------- Run | Scr Mat Robot Analysis Total . | . . Derelict Logs Recovered . | . . Drone Launches . | . . Drone Recoveries . | . . Exploration | -11 -10 ------------- Run | Scr Mat Turns Passed 864 | 50 814 Spaces Moved 539 | 36 503 Core 3 | 3 . Treads . | . . Legs 536 | 33 503 Wheels . | . . Hover . | . . Flight . | . . Fastest Speed 50 | 50 120 Average Speed 119 | 114 120 Slowest Speed 120 | 120 120 Overloaded Moves . | . . Propulsion Burnouts . | . . Robots Hopped . | . . Cave-ins Triggered . | . . Exploration Rate (%) 45 | 3 88 Regions Visited 1 Branch Regions . Pre-discovered Areas . | . . Known Exits Taken . | . . Unknown Exits Taken 1 | 1 . Scrap Searched . | . . Spaces Dug . | . . Terrain Destroyed 58 | . 58 Melee . | . . Projectile . | . . AOE 58 | . 58 Actions | -11 -10 --------- Run | Scr Mat Total 658 | 42 616 Wait 29 | . 29 Move 538 | 35 503 Hop . | . . Pick Up 11 | 1 10 Fast Attach 12 | 6 6 Attach 3 | . 3 Detach . | . . Swap 9 | . 9 Drop 4 | . 4 Fire 52 | . 52 Melee . | . . Ram . | . . Kick . | . . Crush . | . . Escape Stasis . | . . Rewire . | . . Trap . | . . Miscellaneous . | . . Route ------- -11/Scrapyard -10/Materials (discovered 4 exits: [*Mat x2] / *Min x2) History --------- Turn | Location | Event 10 | -11/Scrapyard | Discovered new exit (range 14) 51 | -11/Scrapyard | Entered Materials 260 | -10/Materials | Discovered new exit (range 10) 261 | -10/Materials | Discovered new exit (range 17) 314 | -10/Materials | Build established: Mutant 437 | -10/Materials | Lost 3 parts (1p2w) 502 | -10/Materials | Discovered new exit (range 18) 637 | -10/Materials | Discovered new exit (range 8) 653 | -10/Materials | Core integrity fell below 50% 687 | -10/Materials | Lost 3 parts (1p2w) 721 | -10/Materials | Identified exit to Mines 841 | -10/Materials | Core integrity fell below 20% 844 | -10/Materials | Build established: Scavenger-Mutant 865 | -10/Materials | Destroyed self via exploding Fusion Modulator Last Messages --------------- Sml. Laser (90%) Wheel (92%) Terrain Scan Processor (86%) >>Retrieve(Components) Retrieving 10 components... Terrain Scan Processor Imp. Heat Sink Lgt. Nuclear Core Wheel Mining Laser Particle Gun Heat Sink Lrg. Matter Pod Sml. Laser Terrain Scanner Dropped Aluminum Leg. Acquired Terrain Scanner. Acquired Terrain Scan Processor. Acquired Particle Gun. Fusion Modulator explodes. Map ----- +----------------------------------------------------+ | | | | | | | | | | | | | | | | | | | | | | | | | | | | | | | | | | | | | | | ????????????????###########???????????????????? | | ????????????????# """== #???????????????????? | | ????????????????# "Y"[* #???????????????????? | | ????????????????#!! !| #???????????????????? | | ????????????????#=""" #???????????????????? | | ????????????????# """= #???????????????????? | | ????????????????# """ @#???????????????????? | | ???###########??# #???????????????????? | | ???# #??# g #???????????????????? | | #### """ #??#####+#####???????????????????? | | # """ "T" #?????# #???????#####??????????? | | """# """ #??#### #???????# #??????????? | | """# """ #??# #???????# < #??????????? | | """# ! #??# #???????# #??????????? | | ""?# #??# #???????+ #??????????? | | ??# ! #??# #???????# #??????????? | | #####+########### ######### #??????????? | | #??????????? | | % ###########? | | % # #? | | ############+############ #! #? | | #???# #?????????# # #? | | " #???# ""#?????????# # " #? | | " ????# """ T"#?????????# / ! """" #? | | "?????# """ ""#?????????# # """"" !#? | | ????# """ #?????????#+## ### """"" #? | | ####### #???????? ?# #?# """ #? | | ## """ /??????"" !=?# #?###########? | | ## """ #??????"" !=?# #????????????? | | ## """ #??????"" = ?# #????????????? | | #??? #?????? ? ?# ######???????? | +----------------------------------------------------+ Best States ------------- Heat Dissipation 25 Energy Generation 10 Energy Capacity 250 Matter Stores 300 Matter Capacity 300 Sight Range 18 Terrain Scan Density 10 Evasion (%) 40 Item Schematics ----------------- None Robot Schematics ------------------ None Fabricated ------------ Nothing Alien Tech Used ----------------- None Achievements -------------- None Challenges ------------ None Game ------ Seed LinearHackingLoader Manual? 0 Play Time 00:09:15 Cumulative 6.0 hours Start 2020.01.06 @ 23:30:48 End 2020.01.06 @ 23:39:31 Sessions 1 Manual Loads 0 Difficulty Rogue Special Mode None Game No. 21 Rogue 21 Adventurer 0 Explorer 0 Win Type - Total 0 Types 0/0/0/0/0/0/0 Lore% 3 Gallery% 11 Achievement% 8 Wizard Run 0 Options --------- ASCII 0 Keyboard 0 Movement Numpad Keybinds 0 Fullscreen 1 Font 18/SmallcapsGlow Map View 76x50 Tactical HUD 0 Map Filters NONE Filters NONE Steam 1 RUN: 41ff323b-e416-4e95-92ea-c4c82db1367e